bitfinex-derivatives/quotes_ETHF0:USTF0_20250103
["timestamp","ask_amount","ask_price","bid_price","bid_amount"]
[1735864553721,0.2892,3461.1,3461.0,0.2892]
[1735864554279,0.2892,3461.0,3460.9,0.28921]
[1735864554586,0.28919,3461.2,3461.1,0.00205673]
[1735864556384,0.28925,3460.4,3460.1,4.3588]
[1735864556584,0.28925,3460.4,3460.2,0.28927]
[1735864556778,3.2078,3460.6,3460.1,3.2078]
[1735864557081,3.2078,3460.6,3460.0,0.4338]
[1735864557082,0.28928,3460.1,3460.0,0.4338]
[1735864557286,3.2078,3460.2,3459.8,6.77712227]
[1735864557287,0.28929,3460.0,3459.8,7.06642227]
[1735864558087,3.2078,3460.2,3459.7,1.5943]
[1735864558479,0.28928,3460.1,3459.7,1.5943]
[1735864558883,0.28928,3460.1,3459.9,0.28929]
[1735864559372,0.28928,3460.1,3459.4,3.2078]
[1735864559373,3.2078,3460.2,3459.6,1.151]
[1735864559686,0.71279,3460.1,3459.9,0.28929]
[1735864559986,0.28929,3460.0,3459.8,0.2893]
[1735864560190,0.28929,3460.0,3459.6,1.5943]
[1735864560191,0.28931,3459.8,3459.6,0.73262]
[1735864560976,0.8458,3460.1,3459.6,0.4433]
[1735864561212,0.28931,3459.7,3459.6,0.4433]
[1735864562796,0.28932,3459.6,3459.5,0.4423]
[1735864563187,0.28932,3459.7,3459.5,0.73163]
[1735864563584,0.8458,3460.1,3459.5,0.4423]
[1735864563784,0.28932,3459.6,3459.5,0.4423]
[1735864564290,0.28932,3459.6,3459.5,0.73163]
[1735864564590,0.28932,3459.6,3459.5,0.4423]
[1735864564891,0.28931,3459.7,3459.5,0.73162]
[1735864565693,0.28931,3459.8,3459.6,0.28932]
[1735864566091,0.71278,3460.1,3459.9,0.28929]
[1735864566286,0.71278,3460.1,3460.0,0.75339]
[1735864566287,0.4235,3460.1,3460.0,0.75339]
[1735864566493,0.4235,3460.1,3460.0,0.4641]
[1735864566690,0.2893,3459.9,3459.7,0.28931]
[1735864566894,0.2893,3459.9,3459.7,0.73281]
[1735864567192,0.28929,3460.0,3459.8,0.2893]
[1735864567691,0.71278,3460.1,3460.0,0.28929]
[1735864567885,0.9204,3460.5,3460.1,0.28928]
[1735864568085,3.40711892,3460.6,3460.2,3.2078]
[1735864568293,3.69635892,3460.6,3460.5,0.28925]
[1735864568489,3.40711892,3460.6,3460.2,3.2078]
[1735864568795,0.28925,3460.5,3460.3,0.28926]
[1735864569493,0.4608,3460.7,3460.2,3.2078]
[1735864569719,0.28922,3460.8,3460.6,0.28923]
[1735864569888,0.28923,3460.7,3460.6,0.28923]
[1735864570192,0.28922,3460.8,3460.7,0.28923]
[1735864570693,1.3185,3460.9,3460.4,1.5852]
[1735864570892,0.28922,3460.8,3460.4,1.87445]
[1735864571090,0.28924,3460.6,3460.4,1.87445]
[1735864571598,1.3185,3460.9,3460.4,1.5852]
[1735864571599,0.28925,3460.5,3460.4,1.5852]
[1735864571787,0.28925,3460.5,3460.4,1.87445]
[1735864571989,0.28924,3460.6,3460.4,1.87445]
[1735864572595,1.3185,3460.9,3460.4,0.72345]
[1735864572921,3.49704,3460.6,3460.5,0.28925]
[1735864573289,3.2078,3460.6,3460.0,1.44029]
[1735864573487,0.28929,3460.0,3459.9,0.4365]
[1735864573698,0.28929,3460.0,3459.9,0.7258]
[1735864573891,3.49707,3460.2,3460.1,0.28928]
[1735864574491,3.2078,3460.2,3460.1,0.28928]
[1735864574691,0.28927,3460.3,3460.2,0.28927]
[1735864574891,0.28929,3460.0,3459.8,1.6158]
[1735864575085,0.4561,3459.9,3459.8,1.4403]
[1735864577102,0.28931,3459.8,3459.7,0.28931]
[1735864577401,0.28931,3459.7,3459.6,1.44031]
[1735864577898,3.2078,3459.8,3459.2,6.77712227]
[1735864578104,0.28933,3459.5,3459.4,0.28934]
[1735864578415,0.28933,3459.5,3459.3,0.28934]
[1735864578801,3.2078,3459.8,3459.2,0.4378]
[1735864578991,3.2078,3459.8,3459.2,0.72715]
[1735864579193,0.28935,3459.4,3459.2,0.72715]
[1735864579397,3.2078,3459.3,3459.2,0.72715]
[1735864579606,3.49715,3459.3,3459.2,0.72715]
[1735864579800,3.2078,3459.3,3459.2,0.72715]
[1735864582113,3.2078,3459.3,3459.2,0.28935]
[1735864583911,0.28932,3459.6,3459.1,0.4344]
[1735864584106,3.6639,3459.9,3459.1,0.4344]
[1735864584304,0.7454,3459.9,3459.8,0.2893]
[1735864584502,0.4561,3459.9,3459.8,0.2893]
[1735864585212,0.7454,3459.9,3459.8,0.2893]
[1735864585603,0.4561,3459.9,3459.8,0.2893]
[1735864586312,0.7454,3459.9,3459.8,0.2893]
[1735864586611,0.4561,3459.9,3459.8,0.2893]
[1735864592207,3.2078,3460.3,3460.0,0.28929]
[1735864592413,3.49707,3460.3,3460.1,0.28928]
[1735864593138,0.28928,3460.1,3459.9,0.28929]
[1735864594013,0.28928,3460.1,3460.0,0.28929]
[1735864594414,0.28929,3460.0,3459.6,0.4229]
[1735864594615,0.4345,3459.9,3459.6,0.4229]
[1735864594817,0.4345,3459.9,3459.8,0.2893]
[1735864595513,3.6423,3459.9,3459.8,0.2893]
[1735864599009,3.6423,3459.9,3459.4,4.95582239]
[1735864599215,0.4635,3459.8,3459.3,6.77712227]
[1735864599513,0.28934,3459.4,3459.3,6.77712227]
[1735864600921,2.27677853,3459.6,3459.1,0.28936]
[1735864600922,0.28935,3459.3,3459.1,0.28936]
[1735864601118,0.28935,3459.3,3459.0,4.52434426]
[1735864601319,0.28935,3459.3,3459.2,0.28935]
[1735864602316,0.28935,3459.2,3459.1,4.81370426]
[1735864602519,0.73455,3459.2,3459.1,4.81370426]
[1735864606723,0.73455,3459.2,3459.1,4.52434426]
[1735864607421,0.28936,3459.1,3459.0,4.81371426]
[1735864608425,3.2078,3459.1,3458.9,4.52434426]
[1735864608720,1.19087,3459.0,3458.9,4.52434426]
[1735864609119,3.46764853,3459.0,3458.9,4.52434426]
[1735864610321,0.2894,3458.6,3458.5,8.47175426]
[1735864611324,0.2894,3458.7,3458.6,0.2894]
[1735864612133,3.2078,3459.1,3458.5,3.658]
[1735864612328,3.2078,3459.1,3459.0,0.28937]
[1735864613131,0.4239,3459.3,3459.2,0.28935]
[1735864613320,3.40711892,3459.6,3459.5,0.28933]
[1735864614024,0.28931,3459.8,3459.3,0.28935]
[1735864614343,0.28931,3459.8,3459.7,0.28931]
[1735864614529,0.28932,3459.7,3459.6,0.28932]
[1735864615730,3.2078,3459.9,3459.8,0.2893]
[1735864616453,3.4971,3459.9,3459.8,0.2893]
[1735864616629,3.4971,3459.9,3459.3,4.52434426]
[1735864616825,0.28931,3459.8,3459.6,0.28931]
[1735864617022,0.28931,3459.8,3459.7,0.28931]
[1735864617527,3.4971,3459.9,3459.8,0.2893]
[1735864618559,0.28931,3459.8,3459.7,0.2893]
[1735864619131,3.2078,3459.9,3459.3,6.77712227]
[1735864619132,0.28933,3459.6,3459.5,4.81366426]
[1735864620431,3.2078,3459.9,3459.4,4.52434426]
[1735864620432,0.28933,3459.5,3459.4,4.52434426]
[1735864620670,2.56610853,3459.5,3459.4,4.52434426]
[1735864620828,5.77390853,3459.5,3459.4,4.52434426]
[1735864621533,5.48457853,3459.5,3458.8,4.52434426]
[1735864621828,0.28938,3459.0,3458.9,0.28938]
[1735864622736,0.28939,3458.8,3458.7,5.24693426]
[1735864622931,0.28937,3459.0,3458.9,0.28938]
[1735864623235,0.28935,3459.3,3459.1,0.28936]
[1735864623666,0.28934,3459.4,3459.1,0.28936]
[1735864623827,0.28935,3459.2,3459.1,0.28936]
[1735864624124,7.03971892,3459.5,3458.8,4.52434426]
[1735864624329,0.28935,3459.3,3458.9,0.28938]
[1735864624536,0.28934,3459.4,3459.3,0.28934]
[1735864624971,7.03971892,3459.5,3459.4,0.28934]
[1735864625144,6.61491892,3459.5,3459.4,0.28934]
[1735864625530,3.2078,3459.5,3459.4,0.28934]
[1735864626527,3.49713,3459.5,3459.4,0.28934]
[1735864626728,3.2078,3459.5,3459.4,0.28934]
[1735864626933,0.28933,3459.6,3459.5,0.28933]
[1735864629233,0.28933,3459.5,3459.4,0.74483]
[1735864629545,0.28933,3459.6,3459.5,0.28933]
[1735864632240,0.28932,3459.7,3459.6,0.28932]
[1735864632442,3.6703,3459.9,3459.4,0.4555]
[1735864632742,7.07741892,3459.9,3459.4,0.4555]
[1735864633043,0.28931,3459.8,3459.4,0.4555]
[1735864633243,0.28931,3459.8,3459.7,0.28931]
[1735864633434,0.28931,3459.7,3459.6,0.28932]
[1735864636675,0.28933,3459.5,3459.4,0.74483]
[1735864636938,0.28933,3459.5,3459.4,0.4555]
[1735864638842,2.27677853,3459.5,3459.2,4.52434426]
[1735864639043,0.28935,3459.3,3459.2,4.52434426]
[1735864639445,0.28935,3459.2,3459.1,4.52434426]
[1735864639748,2.56612853,3459.2,3459.1,4.52434426]
[1735864640845,2.27677853,3459.2,3458.8,0.28939]
[1735864641040,0.28938,3458.9,3458.8,0.28939]
[1735864641644,0.28937,3459.0,3458.9,0.28937]
[1735864642252,2.27677853,3459.2,3458.7,4.52434426]
[1735864642448,0.28938,3458.9,3458.8,0.28938]
[1735864642743,0.28937,3459.0,3458.9,0.28937]
[1735864642945,3.85791892,3459.3,3458.8,4.52434426]
[1735864642946,0.74015,3459.3,3458.8,4.52434426]
[1735864643155,0.74015,3459.3,3459.2,0.28935]
[1735864644550,7.49091892,3459.4,3459.3,0.28935]
[1735864644551,3.6355,3459.4,3459.3,0.28935]
[1735864644748,3.40711892,3459.5,3459.4,0.28934]
[1735864645848,0.28932,3459.6,3459.5,0.28933]
[1735864646144,0.28932,3459.6,3459.4,0.28933]
[1735864646455,0.28932,3459.6,3459.3,4.52434426]
[1735864646645,0.28932,3459.6,3459.5,0.28933]
[1735864647452,0.28933,3459.5,3459.4,0.28933]
[1735864650056,0.28934,3459.4,3459.3,0.28934]
[1735864650254,9.34759745,3459.8,3459.2,5.66834426]
[1735864650594,7.07081892,3459.8,3459.2,5.66834426]
[1735864650951,0.28934,3459.4,3459.3,0.28934]
[1735864652047,0.28934,3459.4,3459.3,4.81368426]
[1735864652656,0.28934,3459.4,3459.3,4.52434426]
[1735864652960,3.49714,3459.4,3459.3,4.52434426]
[1735864653451,0.28935,3459.3,3459.2,5.66834426]
[1735864654355,3.49714,3459.4,3459.3,0.28935]
[1735864654757,0.28935,3459.3,3459.2,5.95769426]
[1735864655151,0.72135,3459.3,3459.2,5.95769426]
[1735864655558,0.72135,3459.3,3459.2,4.52434426]
[1735864656999,1.18095,3459.3,3459.2,4.52434426]
[1735864657351,1.18095,3459.3,3459.2,1.23714426]
[1735864658155,0.2894,3458.7,3458.6,1.139]
[1735864658358,0.2894,3458.7,3458.6,1.4284]
[1735864660062,0.28939,3458.8,3458.7,0.28939]
[1735864663859,0.2894,3458.7,3458.6,1.139]
[1735864665363,3.2078,3459.0,3458.4,7.21042227]
[1735864665599,0.28941,3458.5,3458.4,7.49984227]
[1735864666261,0.28941,3458.6,3458.5,0.28941]
[1735864666694,3.2078,3459.0,3458.4,7.21042227]
[1735864666866,0.28938,3458.9,3458.8,0.28938]
[1735864667179,6.61968016,3459.0,3458.9,0.28938]
[1735864668463,3.2078,3459.0,3458.9,0.28938]
[1735864668663,3.49717,3459.0,3458.9,0.28938]
[1735864668878,3.2078,3459.0,3458.9,0.28938]
[1735864671875,3.49717,3459.0,3458.9,0.28938]
[1735864673676,3.2078,3459.0,3458.9,0.28938]
[1735864674980,3.49717,3459.0,3458.9,0.28938]
[1735864679180,3.2078,3459.0,3458.9,0.28938]
[1735864680085,3.49717,3459.0,3458.9,0.28938]
[1735864681274,3.2078,3459.0,3458.7,0.4629]
[1735864681491,0.28939,3458.8,3458.7,0.75229]
[1735864681674,0.28938,3458.9,3458.8,0.28938]
[1735864682282,0.74198,3458.9,3458.8,0.28938]
[1735864684284,0.4526,3458.9,3458.8,0.28938]
[1735864685785,3.2078,3459.0,3458.9,0.28938]
[1735864687814,3.70122016,3459.4,3459.3,0.28935]
[1735864689887,0.28934,3459.4,3459.3,0.28935]
[1735864691788,4.55355706,3459.4,3458.9,6.77712227]
[1735864692011,5.77394853,3459.0,3458.9,6.77712227]
[1735864693289,5.77394853,3459.0,3458.4,0.4388]
[1735864693290,5.48457853,3459.0,3458.4,0.4388]
[1735864693486,3.49721,3458.5,3458.4,0.4388]
[1735864694882,0.28943,3458.4,3458.2,0.28944]
[1735864695287,0.28943,3458.3,3458.1,0.73194]
[1735864696087,0.28944,3458.2,3458.0,1.42345]
[1735864696394,0.73913,3458.3,3458.1,0.28945]
[1735864696985,0.73913,3458.3,3458.2,0.28944]
[1735864697696,3.2078,3458.5,3458.3,0.28942]
[1735864697995,3.2078,3458.5,3458.0,1.134]
[1735864697996,3.2078,3458.5,3458.4,0.71932]
[1735864698399,3.2078,3458.5,3458.4,0.4299]
[1735864698695,3.49721,3458.5,3458.4,0.4299]
[1735864700695,3.49721,3458.5,3458.4,0.71932]
[1735864701093,3.49721,3458.5,3458.4,0.4299]
[1735864702198,3.49721,3458.5,3458.3,0.28942]
[1735864702996,3.2078,3458.5,3458.4,0.28942]
[1735864704003,3.70157311,3458.7,3458.2,7.19782227]
[1735864704197,3.70157311,3458.7,3458.6,0.2894]
[1735864704597,3.41217311,3458.7,3458.6,0.2894]
[1735864704800,3.70157311,3458.7,3458.6,0.2894]
[1735864705097,4.58516311,3458.8,3458.6,0.2894]
[1735864705304,4.29577311,3458.8,3458.6,0.2894]
[1735864705600,4.29577311,3458.8,3458.2,7.19782227]
[1735864705794,0.2894,3458.7,3458.5,0.28941]
[1735864706397,4.29577311,3458.8,3458.2,6.77712227]
[1735864706598,0.28942,3458.5,3458.3,0.28942]
[1735864709103,0.28942,3458.5,3458.3,0.28943]
[1735864710002,0.28942,3458.5,3458.4,0.28942]
[1735864710904,0.2894,3458.6,3458.3,0.28943]
[1735864711205,0.28943,3458.4,3458.3,0.28943]
[1735864712104,0.28942,3458.5,3458.3,0.28943]
[1735864712405,0.28942,3458.4,3458.3,0.28943]
[1735864712702,0.28942,3458.5,3458.3,0.28943]
[1735864713204,0.28941,3458.5,3458.3,0.28943]
[1735864713599,0.28942,3458.4,3458.3,0.28943]
[1735864714902,3.2078,3458.6,3458.3,0.28943]
[1735864715207,0.28942,3458.5,3458.4,0.28942]
[1735864715807,0.28942,3458.4,3458.3,0.28943]
[1735864718556,0.28942,3458.5,3458.3,0.28943]
[1735864719811,0.28942,3458.5,3458.4,0.28942]
[1735864721507,3.49721,3458.6,3458.5,0.28941]
[1735864722309,4.50193813,3458.6,3458.5,0.28941]
[1735864723210,4.21252813,3458.6,3458.5,0.28941]
[1735864724312,3.2078,3458.6,3458.5,0.28941]
[1735864724943,4.21252813,3458.6,3458.5,0.28941]
[1735864725108,1.00472813,3458.6,3458.5,0.28941]
[1735864730320,1.00472813,3458.6,3458.4,0.4454]
[1735864730522,0.28941,3458.5,3458.3,0.28943]
[1735864730823,1.00472813,3458.4,3458.3,0.28943]
[1735864731027,1.00472813,3458.4,3458.2,6.77712227]
[1735864731221,0.28943,3458.3,3458.2,7.06655227]
[1735864731818,1.00472813,3458.4,3458.2,7.06655227]
[1735864731819,1.29415813,3458.4,3458.2,7.06655227]
[1735864732022,0.28943,3458.3,3458.2,7.06655227]
[1735864732220,1.00472813,3458.4,3458.2,0.28943]
[1735864732424,1.29414813,3458.4,3458.3,0.28943]
[1735864734230,1.00472813,3458.4,3458.3,0.28943]
[1735864736015,0.28941,3458.5,3458.1,7.21592227]
[1735864736214,0.28941,3458.5,3458.4,0.28942]
[1735864737217,4.21252813,3458.6,3458.3,6.77712227]
[1735864737422,0.28942,3458.4,3458.3,7.06655227]
[1735864739020,3.70159311,3458.4,3458.3,12.69364801]
[1735864740127,3.41217311,3458.4,3458.3,12.69364801]
[1735864741329,3.41217311,3458.5,3458.4,0.28942]
[1735864741720,3.70158311,3458.5,3458.4,0.28942]
[1735864742535,0.28941,3458.5,3458.4,5.91651574]
[1735864743938,7.62470124,3458.6,3458.5,0.28941]
[1735864743939,4.70631124,3458.6,3458.5,0.28941]
[1735864744333,4.70631124,3458.6,3458.4,5.91651574]
[1735864745238,1.29413813,3458.6,3458.5,5.62709574]
[1735864745535,1.29413813,3458.6,3458.5,5.91650574]
[1735864746637,1.29413813,3458.6,3458.5,5.62709574]
[1735864749942,0.28942,3458.4,3458.3,6.81714847]
[1735864750132,4.50194813,3458.4,3458.3,6.81714847]
[1735864751041,0.28945,3458.1,3458.0,4.71504847]
[1735864751347,1.29417813,3458.1,3458.0,4.71504847]
[1735864752472,0.28947,3457.8,3457.7,0.28948]
[1735864752638,1.29419813,3457.8,3457.7,0.28948]
[1735864752840,1.00472813,3457.8,3457.7,0.28948]
[1735864753755,1.00472813,3457.8,3457.7,5.86203561]
[1735864754445,3.41593274,3457.9,3457.7,5.57255561]
[1735864754647,4.21252813,3458.0,3457.5,1.42702813]
[1735864754648,4.42066087,3458.0,3457.5,1.42702813]
[1735864754834,4.42066087,3458.0,3457.9,0.28946]
[1735864755338,4.71011087,3458.0,3457.9,0.28946]
[1735864755947,1.29417813,3458.0,3457.9,0.28946]
[1735864756342,1.00472813,3458.0,3457.9,0.28946]
[1735864765046,3.41593274,3458.2,3457.9,0.28946]
[1735864765252,4.42066087,3458.2,3458.1,0.28945]
[1735864765562,0.28945,3458.1,3458.0,0.8847]
[1735864765850,0.28945,3458.1,3458.0,0.4565]
[1735864767155,3.70538274,3458.1,3458.0,0.4565]
[1735864768679,3.41593274,3458.1,3457.6,0.4282]
[1735864768845,1.00472813,3457.7,3457.6,0.4282]
[1735864769049,1.00472813,3457.7,3457.6,0.71769]
[1735864771149,1.00472813,3457.7,3457.6,0.4282]
[1735864771344,1.29420813,3457.7,3457.6,0.4282]
[1735864773246,1.00472813,3457.7,3457.5,0.8857]
[1735864773557,3.49729,3457.6,3457.5,0.8857]
[1735864773755,0.28951,3457.3,3457.2,9.77848303]
[1735864774052,1.29423813,3457.4,3457.2,1.17462]
[1735864774653,1.00472813,3457.4,3457.0,9.03616303]
[1735864774856,4.21252813,3457.2,3457.0,9.03616303]
[1735864775207,4.21252813,3457.2,3457.1,0.28953]
[1735864775657,1.00472813,3457.4,3457.0,9.03616303]
[1735864775855,1.00472813,3457.4,3457.3,0.28951]
[1735864776856,1.00472813,3457.4,3456.9,0.8756]
[1735864777074,3.2078,3457.6,3456.9,0.8756]
[1735864777075,1.00472813,3457.1,3457.0,0.28953]
[1735864777461,1.00472813,3457.2,3457.1,0.28953]
[1735864778765,0.28953,3457.1,3456.9,1.16514]
[1735864778956,0.28953,3457.1,3457.0,0.28954]
[1735864779560,1.00472813,3457.2,3456.9,0.8756]
[1735864779857,1.29425813,3457.2,3457.0,0.28953]
[1735864780069,1.29425813,3457.2,3456.9,0.8756]
[1735864780268,1.29425813,3457.2,3457.1,0.28953]
[1735864781161,1.00472813,3457.2,3457.1,0.28953]
[1735864787870,0.28954,3457.0,3456.9,0.8756]
[1735864788071,0.28955,3456.8,3456.7,4.53814714]
[1735864788370,2.57834801,3456.8,3456.7,4.53814714]
[1735864789276,0.28959,3456.4,3456.1,11.38265871]
[1735864789473,5.78618801,3456.4,3456.1,11.38265871]
[1735864790277,10.78618801,3456.4,3456.1,11.38265871]
[1735864790480,0.28965,3455.7,3455.4,0.73927]
[1735864791771,3.2078,3456.0,3455.4,0.4496]
[1735864791975,0.28966,3455.5,3455.4,0.4496]
[1735864793181,2.28879801,3455.6,3455.4,0.4496]
[1735864793374,2.57845801,3455.6,3455.4,0.4496]
[1735864793975,0.28966,3455.5,3455.4,0.4496]
[1735864797277,5.49659801,3455.6,3455.1,0.2897]
[1735864797481,2.28879801,3455.2,3455.0,0.2897]
[1735864797883,2.28879801,3455.2,3455.1,0.4427]
[1735864798480,2.28879801,3455.2,3455.1,0.7324]
[1735864800094,5.49659801,3455.2,3455.1,0.7324]
[1735864800480,5.78628801,3455.2,3455.1,0.4427]
[1735864800682,5.49659801,3455.2,3455.1,0.4427]
[1735864800880,5.49659801,3455.2,3455.0,0.2897]
[1735864800881,5.78628801,3455.2,3454.8,0.75602]
[1735864801086,2.28879801,3454.9,3454.8,1.18682]
[1735864801294,2.28879801,3454.9,3454.8,0.8971]
[1735864802892,2.28879801,3454.9,3454.8,1.18682]
[1735864803099,3.2078,3455.2,3455.1,0.2897]
[1735864803586,5.49659801,3455.2,3455.1,0.2897]
[1735864804492,2.507,3455.2,3455.1,0.2897]
[1735864804688,2.28879801,3455.5,3455.0,1.135]
[1735864804992,2.28879801,3455.5,3455.4,0.28967]
[1735864806794,0.28968,3455.3,3455.2,0.4574]
[1735864807691,2.28879801,3455.5,3454.9,0.28971]
[1735864807900,2.28879801,3455.0,3454.9,0.74391]
[1735864810293,2.28879801,3455.0,3454.9,0.4542]
[1735864810494,2.57850801,3455.0,3454.9,0.4542]
[1735864810908,2.28879801,3455.0,3454.9,0.4542]
[1735864811202,2.28879801,3455.0,3454.9,0.74391]
[1735864812103,2.57850801,3455.0,3454.9,0.4542]
[1735864812343,2.28879801,3455.0,3454.9,0.4542]
[1735864812538,2.28879801,3455.0,3454.9,0.74391]
[1735864813101,3.2078,3455.2,3454.9,0.4542]
[1735864813403,3.2078,3455.2,3455.1,0.2897]
[1735864815308,3.2078,3455.2,3454.9,0.4542]
[1735864815504,3.49749,3455.2,3455.0,0.2897]
[1735864815911,0.28971,3455.0,3454.9,0.4542]
[1735864816213,2.57850801,3455.0,3454.9,0.4542]
[1735864817412,2.28879801,3455.0,3454.9,0.74391]
[1735864817664,2.57850801,3455.0,3454.9,0.4542]
[1735864819518,2.28879801,3455.0,3454.9,0.74391]
[1735864820855,2.28879801,3455.0,3454.5,3.2078]
[1735864821015,2.57853801,3454.6,3454.4,0.28975]
[1735864821215,0.28976,3454.5,3454.3,1.17566]
[1735864821417,2.57853801,3454.6,3454.4,0.28975]
[1735864821931,2.28879801,3454.6,3454.4,0.28975]
[1735864822117,0.28975,3454.5,3454.3,1.17566]
[1735864822511,0.28976,3454.4,3454.3,1.17566]
[1735864823420,0.28975,3454.5,3454.3,1.17566]
[1735864823619,0.28976,3454.4,3454.3,1.17566]
[1735864823820,0.28976,3454.4,3454.3,0.8859]
[1735864826719,0.28976,3454.4,3454.3,1.17566]
[1735864828524,2.28879801,3454.6,3454.3,1.17566]
[1735864828724,0.28975,3454.5,3454.3,1.17566]
[1735864829116,2.28879801,3454.6,3454.5,0.28975]
[1735864829423,2.28879801,3455.2,3455.1,0.2897]
[1735864829622,2.26981975,3455.3,3455.0,3.2078]
[1735864829818,2.26981975,3455.3,3455.2,0.28969]
[1735864830323,2.26981975,3455.3,3455.1,0.8561]
[1735864830324,3.85761776,3455.8,3455.7,0.28965]
[1735864831023,4.14725776,3455.8,3455.6,0.28965]
[1735864831473,3.85761776,3455.8,3455.6,0.28965]
[1735864831623,4.14725776,3455.8,3455.6,0.28965]
[1735864831824,2.57843801,3455.8,3455.6,0.28965]
[1735864832225,2.28879801,3455.8,3455.7,0.28965]
[1735864832826,2.28879801,3455.8,3455.1,0.8561]
[1735864833023,2.57843801,3455.8,3455.6,0.28965]
[1735864833729,2.28879801,3455.8,3455.7,0.28965]
[1735864836825,2.28879801,3455.8,3455.4,3.2078]
[1735864837027,2.28879801,3455.5,3455.4,3.49747]
[1735864840337,2.28879801,3455.8,3455.7,0.28965]
[1735864841332,3.41593274,3455.9,3455.8,0.28964]
[1735864841927,3.41593274,3456.0,3455.9,0.28963]
[1735864843132,4.54956414,3456.2,3455.9,0.28963]
[1735864843133,4.54956414,3456.2,3455.9,3.2078]
[1735864843333,3.4103141,3456.6,3456.5,0.28958]
[1735864843634,3.4103141,3456.6,3456.5,1.42458]
[1735864844427,4.54956414,3456.8,3456.7,0.28956]
[1735864845173,2.28879801,3457.0,3456.9,0.28955]
[1735864846432,2.28879801,3457.0,3456.6,0.8859]
[1735864846633,2.28879801,3457.0,3456.9,0.28955]
[1735864847840,2.57833801,3457.0,3456.6,0.8859]
[1735864848035,2.28879801,3457.0,3456.9,0.28955]
[1735864848235,2.28879801,3457.0,3456.6,0.8859]
[1735864848437,2.28879801,3457.0,3456.8,0.28955]
[1735864849835,2.28879801,3457.0,3456.6,0.8859]
[1735864850344,2.28879801,3456.7,3456.6,0.72747]
[1735864850533,2.28879801,3456.7,3456.6,0.28957]
[1735864851032,2.28879801,3457.0,3456.3,1.135]
[1735864851234,2.57833801,3457.0,3456.8,0.28955]
[1735864852265,2.28879801,3457.0,3456.3,1.135]
[1735864852735,2.57833801,3457.0,3456.8,0.28955]
[1735864853241,2.28879801,3457.0,3456.3,1.135]
[1735864853441,2.28879801,3457.0,3456.9,0.28955]
[1735864855839,3.2078,3457.2,3457.1,0.28953]
[1735864857339,3.2078,3457.2,3456.6,1.3195]
[1735864857543,3.49732,3457.2,3457.0,0.28954]
[1735864857840,3.2078,3457.2,3457.1,0.28953]
[1735864859542,2.28879801,3457.6,3457.1,1.135]
[1735864859845,2.28879801,3457.6,3457.5,0.2895]
[1735864860038,2.28879801,3457.6,3457.2,1.3708]
[1735864860237,2.57828801,3457.6,3457.4,0.2895]
[1735864860448,2.28879801,3457.6,3457.2,1.3708]
[1735864860743,2.28879801,3457.6,3457.5,0.2895]
[1735864860937,2.57828801,3457.6,3457.5,0.2895]
[1735864861443,2.57828801,3457.6,3457.2,1.3708]
[1735864861649,2.57828801,3457.6,3457.4,0.2895]
[1735864863549,2.57828801,3457.6,3457.2,1.3708]
[1735864863843,2.28879801,3457.6,3457.5,0.2895]
[1735864864239,2.57828801,3457.6,3457.5,0.2895]
[1735864864448,2.57828801,3457.6,3457.4,0.2895]
[1735864864641,0.2895,3457.5,3457.4,0.2895]
[1735864864847,2.57828801,3457.6,3457.4,0.2895]
[1735864865142,2.28879801,3457.6,3457.5,0.2895]
[1735864866146,2.57828801,3457.6,3457.5,0.2895]
[1735864866448,0.2895,3457.5,3457.3,0.28951]
[1735864866645,0.7205,3457.5,3457.3,0.28951]
[1735864866846,0.431,3457.5,3457.4,0.2895]
[1735864870657,2.28879801,3457.6,3457.5,0.2895]
[1735864875757,0.2895,3457.5,3457.2,0.28951]
[1735864875952,2.57831801,3457.3,3457.1,0.28953]
[1735864876149,0.4449,3457.2,3457.1,0.28953]
[1735864878358,0.4449,3457.2,3456.8,0.8974]
[1735864878554,2.28879801,3457.0,3456.8,0.4323]
[1735864878751,2.57833801,3457.0,3456.8,0.72185]
[1735864879457,3.03723801,3457.0,3456.8,0.72185]
[1735864880062,2.74769801,3457.0,3456.8,0.4323]
[1735864880271,2.74769801,3457.0,3456.9,0.28955]
[1735864880953,3.03723801,3457.0,3456.9,0.28955]
[1735864881863,3.03723801,3457.0,3456.8,0.4323]
[1735864881864,2.74769801,3457.0,3456.8,0.4323]
[1735864882159,3.03723801,3457.0,3456.9,0.28955]
[1735864884857,2.74769801,3457.0,3456.9,0.28955]
[1735864885663,0.73443,3457.2,3456.4,1.60448]
[1735864885664,0.4449,3457.2,3457.1,0.28953]
[1735864886463,3.4973,3457.5,3457.4,0.2895]
[1735864886665,3.9503,3457.5,3457.4,0.2895]
[1735864887057,3.9503,3457.5,3457.3,0.28951]
[1735864887356,0.7425,3457.5,3457.3,0.28951]
[1735864888669,0.2895,3457.4,3457.3,0.28951]
[1735864889165,0.2895,3457.4,3457.0,0.449]
[1735864889558,0.7425,3457.5,3457.3,0.28951]
[1735864890163,0.453,3457.5,3457.3,0.28951]
[1735864890367,0.2895,3457.4,3457.3,0.28951]
[1735864890900,0.2895,3457.4,3457.0,0.449]
[1735864891068,0.2895,3457.4,3457.2,0.28952]
[1735864892768,0.28951,3457.4,3457.0,0.449]
[1735864892991,0.28951,3457.4,3457.2,0.28951]
[1735864897564,0.453,3457.5,3457.0,0.449]
[1735864897770,0.2895,3457.5,3457.0,0.449]
[1735864898069,0.2895,3457.5,3457.3,0.28951]
[1735864898370,0.2895,3457.5,3457.4,0.4492]
[1735864898762,0.2895,3457.5,3457.4,0.8804]
[1735864899068,0.2895,3457.5,3457.4,1.1699]
[1735864900363,0.2895,3457.5,3457.4,0.8804]
[1735864900970,0.28953,3457.2,3457.1,0.28953]
[1735864901288,0.28953,3457.2,3457.0,7.22258127]
[1735864901289,0.28953,3457.2,3457.0,7.20688127]
[1735864901568,2.28879801,3457.3,3457.0,7.20688127]